bitfinex-derivatives/quotes_BTCF0:USTF0_20260221
["timestamp","ask_amount","ask_price","bid_price","bid_amount"]
[1771694088181,0.014639,68330.0,68325.0,0.02928]
[1771694088675,0.014638,68332.0,68325.0,0.02928]
[1771694088869,0.014638,68334.0,68326.0,0.01464]
[1771694089074,0.014638,68335.0,68326.0,0.01464]
[1771694089270,0.014638,68335.0,68318.0,0.014641]
[1771694089271,0.24382387,68329.0,68320.0,0.014641]
[1771694089479,0.24382387,68329.0,68311.0,0.014643]
[1771694089480,0.24382387,68329.0,68318.0,0.014641]
[1771694090078,0.24382387,68329.0,68320.0,0.014641]
[1771694090981,0.22918487,68329.0,68322.0,0.01464]
[1771694091182,0.22918487,68329.0,68321.0,0.014641]
[1771694091681,0.24382387,68329.0,68321.0,0.014641]
[1771694092183,0.01464,68324.0,68315.0,0.014642]
[1771694092383,0.01464,68325.0,68314.0,0.014642]
[1771694092575,0.01464,68325.0,68316.0,0.014642]
[1771694092775,0.02928,68325.0,68316.0,0.014642]
[1771694093178,0.01464,68325.0,68316.0,0.014642]
[1771694093784,0.01464,68325.0,68316.0,0.029284]
[1771694094576,0.01464,68325.0,68316.0,0.015642]
[1771694096578,0.01464,68325.0,68317.0,0.014642]
[1771694098086,0.01464,68325.0,68317.0,0.015642]
[1771694098683,0.22983464,68327.0,68308.0,0.32556744]
[1771694098987,0.014642,68313.0,68304.0,0.014644]
[1771694099179,0.014643,68312.0,68304.0,0.014644]
[1771694100282,0.05717371,68330.0,68304.0,0.014644]
[1771694100283,0.014637,68341.0,68318.0,0.22637292]
[1771694100486,0.21006758,68340.0,68321.0,0.22637292]
[1771694100682,0.014638,68332.0,68324.0,0.01464]
[1771694102390,0.22178891,68331.0,68324.0,0.01464]
[1771694102686,0.20714991,68330.0,68325.0,0.01464]
[1771694102884,0.20714991,68329.0,68325.0,0.01464]
[1771694103188,0.014638,68332.0,68325.0,0.01464]
[1771694103388,0.20714851,68331.0,68325.0,0.01464]
[1771694103592,0.20714851,68330.0,68325.0,0.01464]
[1771694103784,0.20714851,68329.0,68325.0,0.01464]
[1771694104089,0.014638,68332.0,68325.0,0.01464]
[1771694104677,0.001,68330.0,68325.0,0.01464]
[1771694104881,0.014638,68332.0,68325.0,0.01464]
[1771694105390,0.014638,68333.0,68326.0,0.014639]
[1771694106292,0.014638,68332.0,68324.0,0.01464]
[1771694106489,0.014639,68331.0,68324.0,0.01464]
[1771694106690,0.014639,68331.0,68324.0,0.02928]
[1771694106889,0.001,68330.0,68324.0,0.02928]
[1771694107191,0.014639,68331.0,68324.0,0.02928]
[1771694107392,0.015638,68332.0,68325.0,0.01464]
[1771694107890,0.001,68331.0,68325.0,0.01464]
[1771694108390,0.014638,68332.0,68325.0,0.01464]
[1771694108580,0.015638,68332.0,68325.0,0.01464]
[1771694108785,0.014639,68331.0,68324.0,0.01464]
[1771694108984,0.014639,68331.0,68323.0,0.01464]
[1771694109183,0.014639,68331.0,68324.0,0.01464]
[1771694110489,0.015639,68331.0,68324.0,0.02928]
[1771694110990,0.014639,68331.0,68324.0,0.02928]
[1771694111191,0.015639,68331.0,68324.0,0.02928]
[1771694111897,0.001,68331.0,68324.0,0.02928]
[1771694112392,0.001,68331.0,68325.0,0.01464]
[1771694112587,0.014638,68336.0,68329.0,0.014639]
[1771694112992,0.014638,68335.0,68328.0,0.014639]
[1771694113688,0.014638,68335.0,68329.0,0.001]
[1771694114390,0.014638,68335.0,68327.0,0.014639]
[1771694114694,0.014638,68334.0,68327.0,0.014639]
[1771694114894,0.014638,68334.0,68329.0,0.001]
[1771694116391,0.014638,68334.0,68327.0,0.015639]
[1771694116890,0.014638,68334.0,68327.0,0.014639]
[1771694117090,0.014638,68334.0,68329.0,0.001]
[1771694117490,0.014638,68334.0,68327.0,0.014639]
[1771694117691,0.029278,68331.0,68324.0,0.01464]
[1771694117892,0.014639,68329.0,68322.0,0.01464]
[1771694118090,0.014639,68330.0,68322.0,0.01464]
[1771694118291,0.014638,68332.0,68324.0,0.01464]
[1771694118796,0.014638,68333.0,68326.0,0.014639]
[1771694120197,0.014638,68333.0,68326.0,0.015639]
[1771694123293,0.014637,68337.0,68326.0,0.015639]
[1771694123493,7e-08,68336.0,68333.0,0.014638]
[1771694123700,0.014636,68342.0,68332.0,0.014638]
[1771694123701,0.014637,68340.0,68332.0,0.014638]
[1771694123999,0.014637,68340.0,68331.0,0.014638]
[1771694124191,0.029274,68340.0,68331.0,0.014638]
[1771694124390,0.014637,68340.0,68331.0,0.014638]
[1771694124593,0.014636,68342.0,68333.0,0.014638]
[1771694124993,0.014636,68342.0,68334.0,0.014638]
[1771694125693,0.014637,68341.0,68332.0,0.014638]
[1771694125894,0.014637,68341.0,68333.0,0.014638]
[1771694126198,0.014635,68348.0,68334.0,0.014638]
[1771694126399,0.014636,68344.0,68336.0,0.014637]
[1771694127394,0.014636,68344.0,68335.0,0.014638]
[1771694127690,0.014636,68344.0,68336.0,0.001]
[1771694128095,0.014636,68344.0,68336.0,0.015637]
[1771694128599,0.014636,68344.0,68336.0,0.001]
[1771694128894,0.014637,68340.0,68332.0,0.014638]
[1771694129100,0.014637,68339.0,68330.0,0.014639]
[1771694129396,0.014637,68338.0,68329.0,0.014639]
[1771694130100,0.014637,68337.0,68330.0,0.001]
[1771694130696,0.014637,68337.0,68329.0,0.015639]
[1771694131100,0.014637,68338.0,68329.0,0.030278]
[1771694131602,0.014637,68338.0,68329.0,0.015639]
[1771694131901,0.014637,68338.0,68330.0,0.014639]
[1771694132098,0.014638,68336.0,68326.0,0.01464]
[1771694132300,0.014638,68336.0,68328.0,0.014639]
[1771694132603,0.014638,68335.0,68327.0,0.014639]
[1771694132899,0.014638,68332.0,68318.0,0.26297549]
[1771694133095,0.014638,68332.0,68317.0,0.26297549]
[1771694133296,0.014638,68332.0,68324.0,0.01464]
[1771694133803,0.029277,68332.0,68324.0,0.01464]
[1771694134102,0.014638,68332.0,68324.0,0.01464]
[1771694134503,0.014639,68331.0,68323.0,0.01464]
[1771694135503,0.014639,68330.0,68322.0,0.01464]
[1771694135803,0.014639,68330.0,68323.0,0.01464]
[1771694135999,0.029278,68330.0,68322.0,0.01464]
[1771694136207,0.014639,68330.0,68322.0,0.01464]
[1771694136505,0.014639,68330.0,68323.0,0.01464]
[1771694136898,0.014639,68331.0,68323.0,0.01464]
[1771694137305,0.014638,68332.0,68324.0,0.01464]
[1771694137603,0.014635,68347.0,68334.0,0.014638]
[1771694137803,0.014635,68347.0,68320.0,0.37133682]
[1771694137804,0.014632,68362.0,68350.0,0.014634]
[1771694138002,0.014631,68365.0,68354.0,0.014633]
[1771694138308,0.014631,68365.0,68356.0,0.014633]
[1771694138501,0.014632,68363.0,68355.0,0.014633]
[1771694138707,0.014632,68362.0,68355.0,0.014633]
[1771694139207,0.014632,68362.0,68354.0,0.014634]
[1771694139399,0.029265,68360.0,68354.0,0.001]
[1771694139594,0.014633,68359.0,68354.0,0.001]
[1771694139803,0.014633,68358.0,68351.0,0.014634]
[1771694144096,0.014632,68360.0,68351.0,0.014634]
[1771694144603,0.014632,68360.0,68352.0,0.014634]
[1771694145107,0.01463,68369.0,68357.0,0.014633]
[1771694145608,0.014631,68364.0,68357.0,0.014633]
[1771694146109,0.014631,68364.0,68355.0,0.014633]
[1771694146305,0.014633,68359.0,68350.0,0.014634]
[1771694147215,0.014632,68360.0,68352.0,0.014634]
[1771694148606,0.014632,68360.0,68352.0,0.015634]
[1771694152809,0.029265,68360.0,68352.0,0.015634]
[1771694153009,0.014632,68360.0,68352.0,0.015634]
[1771694153812,0.014632,68360.0,68352.0,0.030268]
[1771694155815,0.014632,68360.0,68353.0,0.014634]
[1771694156216,0.029265,68360.0,68353.0,0.014634]
[1771694156720,0.014632,68360.0,68353.0,0.014634]
[1771694157720,0.014632,68360.0,68353.0,0.015634]
[1771694159020,0.029265,68360.0,68353.0,0.015634]
[1771694159322,0.014632,68360.0,68353.0,0.015634]
[1771694159914,0.014633,68359.0,68353.0,0.001]
[1771694160115,0.04408947,68368.0,68339.0,0.014637]
[1771694160315,0.71433118,68378.0,68325.0,0.26297549]
[1771694160316,0.014638,68334.0,68325.0,0.26297549]
[1771694160515,0.014636,68342.0,68332.0,0.014638]
[1771694160720,0.014636,68342.0,68334.0,0.014638]
[1771694161021,0.014637,68341.0,68334.0,0.014638]
[1771694161817,0.014637,68341.0,68334.0,0.015638]
[1771694162210,0.014636,68344.0,68334.0,0.015638]
[1771694163721,0.014636,68343.0,68334.0,0.015638]
[1771694164418,0.014636,68343.0,68334.0,0.014638]
[1771694165024,0.015636,68343.0,68334.0,0.014638]
[1771694166522,0.014636,68342.0,68334.0,0.014638]
[1771694167823,0.015636,68342.0,68334.0,0.014638]
[1771694168023,0.014636,68341.0,68334.0,0.014638]
[1771694168224,0.014636,68341.0,68332.0,0.014638]
[1771694168424,0.015636,68342.0,68330.0,0.014639]
[1771694168919,0.015636,68342.0,68334.0,0.014638]
[1771694169119,0.015636,68342.0,68330.0,0.014639]
[1771694169315,0.015636,68342.0,68334.0,0.014638]
[1771694169516,0.015636,68342.0,68330.0,0.014639]
[1771694170423,0.014636,68342.0,68330.0,0.014639]
[1771694170624,0.001,68341.0,68330.0,0.014639]
[1771694171025,0.014636,68342.0,68330.0,0.014639]
[1771694171724,0.014636,68342.0,68334.0,0.014638]
[1771694172322,0.014636,68341.0,68333.0,0.014638]
[1771694173826,0.014636,68342.0,68334.0,0.014638]
[1771694174229,0.014636,68343.0,68335.0,0.014638]
[1771694174928,0.001,68342.0,68335.0,0.014638]
[1771694175327,0.014636,68343.0,68335.0,0.014638]
[1771694175527,0.015636,68343.0,68335.0,0.014638]
[1771694176026,0.2520669,68347.0,68339.0,0.014637]
[1771694176227,0.25300826,68364.0,68339.0,0.014637]
[1771694176528,0.014635,68349.0,68341.0,0.014636]
[1771694176722,0.014634,68350.0,68342.0,0.014636]
[1771694177121,0.014634,68351.0,68343.0,0.014636]
[1771694177522,0.014634,68352.0,68343.0,0.014636]
[1771694178722,0.014634,68351.0,68343.0,0.014636]
[1771694178926,0.014633,68357.0,68346.0,0.014635]
[1771694179128,0.014633,68356.0,68347.0,0.014635]
[1771694179326,0.014633,68357.0,68348.0,0.014635]
[1771694180532,0.014633,68358.0,68349.0,0.014635]
[1771694180932,0.014633,68357.0,68348.0,0.014635]
[1771694181132,0.014633,68357.0,68348.0,0.015635]
[1771694181628,0.014633,68358.0,68349.0,0.014635]
[1771694182340,0.014633,68357.0,68349.0,0.014635]
[1771694184327,0.014633,68357.0,68348.0,0.014635]
[1771694186633,0.014633,68356.0,68348.0,0.014635]
[1771694186833,0.014633,68358.0,68335.0,0.22963781]
[1771694187035,0.014634,68354.0,68335.0,0.21499981]
[1771694187232,0.014634,68354.0,68348.0,0.001]
[1771694187733,0.014634,68354.0,68345.0,0.014636]
[1771694187933,0.014634,68354.0,68346.0,0.014635]
[1771694201245,0.014633,68355.0,68346.0,0.014635]
[1771694201445,0.014633,68355.0,68347.0,0.014635]
[1771694201942,0.014633,68357.0,68332.0,0.32880227]
[1771694201943,0.014633,68358.0,68350.0,0.014634]
[1771694203041,0.014633,68358.0,68350.0,0.015634]
[1771694204347,0.014633,68359.0,68350.0,0.015634]
[1771694205048,0.014633,68359.0,68350.0,0.014634]
[1771694207253,0.014633,68358.0,68350.0,0.014634]
[1771694209949,0.014633,68358.0,68348.0,0.014635]
[1771694210248,0.014633,68358.0,68349.0,0.014635]
[1771694211753,0.014633,68358.0,68349.0,0.015635]
[1771694215155,0.014633,68359.0,68350.0,0.014634]
[1771694216251,0.24882898,68366.0,68354.0,0.014634]
[1771694216453,0.014632,68361.0,68352.0,0.014634]
[1771694218740,0.014632,68360.0,68352.0,0.014634]
[1771694218945,0.014631,68365.0,68356.0,0.014633]
[1771694219154,0.20212699,68364.0,68356.0,0.014633]
[1771694219348,0.20212699,68363.0,68356.0,0.014633]
[1771694219546,0.014631,68366.0,68357.0,0.014633]
[1771694219751,0.2021115,68365.0,68357.0,0.014633]
[1771694219951,0.2021115,68364.0,68357.0,0.014633]
[1771694220148,0.2021115,68363.0,68357.0,0.014633]
[1771694220458,0.014631,68365.0,68352.0,0.014634]
[1771694220750,0.20167711,68364.0,68354.0,0.014633]
[1771694220957,0.20167711,68363.0,68356.0,0.014633]
[1771694221256,0.015632,68363.0,68354.0,0.014634]
[1771694221459,0.001,68363.0,68353.0,0.014634]
[1771694221650,0.014632,68362.0,68353.0,0.014634]
[1771694222149,0.014632,68363.0,68353.0,0.014634]
[1771694222455,0.014632,68361.0,68352.0,0.015634]
[1771694222655,0.014632,68360.0,68352.0,0.015634]
[1771694223742,0.014632,68360.0,68351.0,0.014634]
[1771694225054,0.029265,68360.0,68351.0,0.015634]
[1771694225860,0.014632,68360.0,68351.0,0.015634]
[1771694226552,0.014632,68360.0,68351.0,0.014634]
[1771694226851,0.014633,68359.0,68351.0,0.014634]
[1771694229061,0.014633,68359.0,68353.0,0.00096]
[1771694229359,0.014632,68360.0,68351.0,0.029268]
[1771694229767,0.014632,68360.0,68351.0,0.014634]
[1771694234067,0.029265,68360.0,68351.0,0.014634]
[1771694234765,0.014633,68359.0,68351.0,0.014634]
[1771694236960,0.014633,68359.0,68350.0,0.014634]
[1771694237770,0.014634,68353.0,68345.0,0.014636]
[1771694239369,0.014634,68353.0,68350.0,0.001]
[1771694239765,0.015634,68353.0,68345.0,0.014636]
[1771694240065,0.030268,68353.0,68345.0,0.014636]
[1771694240474,0.014634,68352.0,68345.0,0.014636]
[1771694242476,0.015634,68353.0,68342.0,0.014636]
[1771694242477,0.014635,68350.0,68342.0,0.014636]
[1771694242774,0.014635,68350.0,68343.0,0.014636]
[1771694242775,0.02927,68350.0,68343.0,0.014636]
[1771694242965,0.014635,68349.0,68343.0,0.014636]
[1771694243167,0.014635,68349.0,68341.0,0.014636]
[1771694243474,0.014635,68349.0,68342.0,0.014636]
[1771694243673,0.014635,68350.0,68343.0,0.014636]
[1771694244477,0.014634,68352.0,68345.0,0.014635]
[1771694245973,0.014634,68351.0,68345.0,0.014635]
[1771694247181,0.015634,68351.0,68344.0,0.014636]
[1771694248886,0.014635,68350.0,68343.0,0.014636]
[1771694249088,0.014635,68348.0,68341.0,0.014636]
[1771694249281,0.014635,68348.0,68341.0,0.029272]
[1771694249783,0.014635,68348.0,68342.0,0.014636]
[1771694250183,0.014635,68348.0,68341.0,0.014636]
[1771694250781,0.015635,68348.0,68341.0,0.014636]
[1771694250979,0.001,68348.0,68327.0,0.32880227]
[1771694251184,0.014638,68333.0,68316.0,0.014642]
[1771694251386,0.014638,68332.0,68325.0,0.01464]
[1771694251592,0.014638,68333.0,68326.0,0.01464]
[1771694251993,0.014638,68333.0,68325.0,0.01464]
[1771694252894,0.014638,68333.0,68326.0,0.001]
[1771694253283,0.014638,68333.0,68325.0,0.01464]
[1771694253493,0.014638,68333.0,68326.0,0.01464]
[1771694255488,0.014638,68334.0,68327.0,0.014639]
[1771694257689,0.029276,68334.0,68327.0,0.014639]
[1771694257895,0.014638,68333.0,68326.0,0.01464]
[1771694258391,0.014638,68334.0,68326.0,0.014639]
[1771694259689,0.014638,68333.0,68326.0,0.014639]
[1771694260101,0.014638,68334.0,68326.0,0.014639]
[1771694261694,0.014638,68334.0,68327.0,0.014639]
[1771694264892,0.014638,68335.0,68326.0,0.01464]
[1771694265086,0.014638,68334.0,68327.0,0.014639]
[1771694265691,0.2369686,68339.0,68329.0,0.014639]
[1771694265888,0.014637,68340.0,68332.0,0.014638]
[1771694266102,0.014636,68345.0,68333.0,0.014638]
[1771694266303,0.014636,68344.0,68336.0,0.014637]
[1771694266490,0.014636,68343.0,68335.0,0.014638]
[1771694266693,0.014636,68343.0,68334.0,0.014638]
[1771694267298,0.014636,68342.0,68334.0,0.014638]
[1771694267699,0.014637,68341.0,68333.0,0.014638]
[1771694268395,0.014636,68345.0,68334.0,0.014638]
[1771694268598,0.014634,68352.0,68342.0,0.014636]
[1771694268798,0.014634,68355.0,68346.0,0.014635]
[1771694268990,0.014634,68354.0,68346.0,0.014635]
[1771694269401,0.014634,68353.0,68344.0,0.014636]
[1771694269705,0.014634,68352.0,68344.0,0.014636]
[1771694271205,0.014634,68352.0,68346.0,0.001]
[1771694272105,0.014634,68352.0,68344.0,0.015636]
[1771694272505,0.014634,68351.0,68344.0,0.015636]
[1771694272693,0.014634,68351.0,68344.0,0.001]
[1771694272898,0.014634,68351.0,68346.0,0.001]
[1771694273908,0.014634,68352.0,68346.0,0.001]
[1771694274403,0.014634,68352.0,68344.0,0.015636]
[1771694274904,0.014634,68352.0,68345.0,0.014636]
[1771694275109,0.014634,68353.0,68346.0,0.001]
[1771694275507,0.014634,68353.0,68345.0,0.014636]
[1771694276101,0.014634,68353.0,68346.0,0.001]
[1771694276599,0.014633,68357.0,68349.0,0.014635]
[1771694276802,0.014633,68356.0,68349.0,0.014635]
[1771694277307,0.014633,68358.0,68350.0,0.014634]
[1771694277507,0.014633,68357.0,68350.0,0.014634]
[1771694278608,0.17824862,68370.0,68352.0,0.014634]
[1771694278796,0.014632,68362.0,68352.0,0.014634]
[1771694279002,0.014632,68363.0,68353.0,0.014634]
[1771694279308,0.014632,68361.0,68352.0,0.014634]
[1771694279712,0.014633,68359.0,68350.0,0.015634]
[1771694280898,0.014633,68359.0,68352.0,0.001]
[1771694281502,0.014633,68359.0,68350.0,0.015634]
[1771694281898,0.014633,68359.0,68350.0,0.014634]
[1771694282108,0.014633,68359.0,68352.0,0.001]
[1771694282613,0.014633,68358.0,68350.0,0.014634]
[1771694283505,0.014633,68359.0,68350.0,0.014634]
[1771694284212,0.014633,68359.0,68351.0,0.014634]
[1771694284614,0.014633,68358.0,68349.0,0.014635]
[1771694284915,0.014633,68358.0,68350.0,0.014634]
[1771694286508,0.015633,68358.0,68350.0,0.014634]
[1771694287108,0.016633,68358.0,68350.0,0.014634]
[1771694287511,0.002,68358.0,68350.0,0.014634]
[1771694289818,0.016633,68358.0,68350.0,0.014634]
[1771694295019,0.016633,68358.0,68347.0,0.014635]
[1771694295217,0.014633,68357.0,68349.0,0.014635]
[1771694296513,0.014633,68358.0,68349.0,0.014635]
[1771694296717,0.015633,68358.0,68349.0,0.014635]
[1771694297107,0.001,68357.0,68348.0,0.014635]
[1771694297420,0.001,68357.0,68350.0,0.014634]
[1771694297618,0.014633,68358.0,68350.0,0.014634]
[1771694297920,0.001,68357.0,68350.0,0.014634]
[1771694298507,0.002,68357.0,68350.0,0.014634]
[1771694299812,0.001,68357.0,68350.0,0.014634]
[1771694300012,0.002,68357.0,68350.0,0.014634]
[1771694300721,0.002,68357.0,68351.0,0.014634]
[1771694301619,0.002,68357.0,68350.0,0.014634]
[1771694301813,0.001,68357.0,68350.0,0.014634]
[1771694302320,0.001,68357.0,68351.0,0.014634]
[1771694302522,0.001,68357.0,68354.0,0.014634]
[1771694302916,0.014632,68361.0,68354.0,0.014634]
[1771694303123,0.001,68357.0,68354.0,0.014634]
[1771694303314,0.014632,68361.0,68354.0,0.014634]
[1771694306313,0.014632,68361.0,68353.0,0.014634]
[1771694306514,0.014632,68360.0,68351.0,0.014634]
[1771694307621,0.014632,68360.0,68351.0,0.015634]
[1771694309821,0.014632,68360.0,68351.0,0.014634]
[1771694312031,0.014633,68359.0,68351.0,0.014634]
[1771694313131,0.014632,68362.0,68354.0,0.014633]
[1771694313434,0.20041847,68361.0,68354.0,0.014633]
[1771694313731,0.20041847,68360.0,68354.0,0.014633]
[1771694313932,0.014632,68362.0,68354.0,0.014633]
[1771694314131,0.2150495,68361.0,68354.0,0.014633]
[1771694314332,0.2004175,68360.0,68353.0,0.014634]
[1771694314533,0.014632,68360.0,68353.0,0.014634]
[1771694314833,0.014633,68359.0,68349.0,0.014635]
[1771694315032,0.014633,68357.0,68348.0,0.014635]
[1771694315233,0.014633,68357.0,68350.0,0.014634]
[1771694315434,0.014633,68359.0,68351.0,0.014634]
[1771694323539,0.014633,68358.0,68350.0,0.014634]
[1771694325042,0.014633,68358.0,68352.0,0.00096]
[1771694325241,0.014633,68358.0,68350.0,0.014634]
[1771694332651,0.20043001,68357.0,68350.0,0.014634]
[1771694332851,0.20043001,68356.0,68350.0,0.014634]
[1771694333064,0.20043001,68355.0,68350.0,0.014634]
[1771694333263,0.20043001,68354.0,68350.0,0.014634]
[1771694333562,0.20043001,68353.0,68350.0,0.014634]
[1771694333762,0.014633,68357.0,68350.0,0.014634]
[1771694333961,0.20225501,68356.0,68350.0,0.014634]
[1771694334163,0.20225501,68355.0,68350.0,0.014634]
[1771694334463,0.20225501,68354.0,68350.0,0.014634]
[1771694334764,0.20225501,68353.0,68350.0,0.014634]
[1771694334956,0.20225501,68356.0,68350.0,0.014634]
[1771694335162,0.20225502,68355.0,68350.0,0.014634]
[1771694335362,0.029266,68357.0,68350.0,0.014634]
[1771694335363,0.20225502,68354.0,68350.0,0.014634]
[1771694335663,0.20225502,68353.0,68350.0,0.014634]
[1771694335864,0.014633,68356.0,68350.0,0.014634]
[1771694336066,0.20225503,68355.0,68350.0,0.014634]
[1771694336264,0.20225503,68354.0,68350.0,0.014634]
[1771694336467,0.20225503,68353.0,68350.0,0.014634]
[1771694336763,0.014633,68356.0,68350.0,0.014634]
[1771694336961,0.16334369,68355.0,68350.0,0.014634]
[1771694337164,0.014633,68356.0,68350.0,0.014634]
[1771694337771,0.029266,68356.0,68349.0,0.014635]
[1771694338066,0.014633,68355.0,68349.0,0.014635]
[1771694339062,0.014635,68350.0,68335.0,0.32880227]
[1771694339262,0.014634,68351.0,68344.0,0.014636]
[1771694339662,0.014634,68352.0,68336.0,0.014637]
[1771694339861,0.014634,68352.0,68346.0,0.014635]
[1771694340265,0.014634,68353.0,68346.0,0.014635]
[1771694340965,0.21165983,68359.0,68334.0,0.18245592]
[1771694341166,0.014635,68346.0,68337.0,0.014637]
[1771694341464,0.014636,68343.0,68336.0,0.014637]
[1771694341664,0.014636,68342.0,68335.0,0.014638]
[1771694341866,0.014636,68343.0,68336.0,0.014637]
[1771694342263,0.014636,68344.0,68337.0,0.014637]
[1771694342463,0.014636,68344.0,68335.0,0.014638]
[1771694342672,0.014636,68342.0,68334.0,0.001]
[1771694342975,0.014636,68342.0,68327.0,0.32880227]
[1771694342976,0.014637,68338.0,68330.0,0.014639]
[1771694343273,0.014638,68334.0,68327.0,0.014639]
[1771694343573,0.014638,68334.0,68325.0,0.01464]
[1771694344273,0.014638,68335.0,68327.0,0.014639]
[1771694344971,0.014638,68335.0,68325.0,0.01464]
[1771694345570,0.014638,68335.0,68327.0,0.014639]
[1771694346372,0.014638,68335.0,68327.0,0.029278]
[1771694346862,0.014637,68339.0,68326.0,0.01464]
[1771694347470,0.029276,68336.0,68327.0,0.014639]
[1771694348068,0.014638,68335.0,68327.0,0.014639]
[1771694349268,0.014638,68336.0,68328.0,0.014639]
[1771694349467,0.014638,68336.0,68328.0,0.029278]
[1771694349768,0.014637,68338.0,68330.0,0.014639]
[1771694349969,0.014637,68337.0,68329.0,0.014639]
[1771694350776,0.014638,68336.0,68327.0,0.014639]
[1771694351073,0.014638,68334.0,68326.0,0.01464]
[1771694351870,0.014638,68333.0,68326.0,0.01464]
[1771694352070,0.014638,68334.0,68326.0,0.01464]
[1771694352579,0.014638,68333.0,68321.0,0.014641]
[1771694352868,0.014639,68330.0,68323.0,0.01464]
[1771694353471,0.014638,68334.0,68326.0,0.01464]
[1771694353675,0.014638,68335.0,68327.0,0.014639]
[1771694355376,0.014638,68335.0,68327.0,0.015639]
[1771694355774,0.014638,68335.0,68326.0,0.01464]
[1771694356579,0.014638,68335.0,68327.0,0.014639]
[1771694357877,0.014638,68335.0,68326.0,0.014639]
[1771694360567,0.014638,68336.0,68325.0,0.01464]
[1771694360772,0.014638,68335.0,68327.0,0.014639]
[1771694361674,0.014638,68335.0,68326.0,0.01464]
[1771694363876,0.014638,68334.0,68326.0,0.01464]
[1771694364074,0.014638,68334.0,68328.0,0.0008]
[1771694364272,0.014639,68332.0,68325.0,0.01464]
[1771694365379,0.014639,68332.0,68324.0,0.01464]
[1771694365573,0.014639,68332.0,68323.0,0.01464]
[1771694365574,0.014639,68331.0,68323.0,0.01464]
[1771694365779,0.014639,68328.0,68311.0,0.014643]
[1771694365977,0.014639,68329.0,68322.0,0.01464]
[1771694366382,0.014639,68330.0,68323.0,0.01464]
[1771694367378,0.014639,68331.0,68323.0,0.02928]
[1771694367586,0.014638,68332.0,68323.0,0.01464]
[1771694367775,0.014639,68330.0,68323.0,0.01464]
[1771694370382,0.014639,68330.0,68312.0,0.34344427]
[1771694370383,0.014639,68327.0,68315.0,0.014642]
[1771694370580,0.014639,68329.0,68319.0,0.014641]
[1771694370885,0.014639,68328.0,68320.0,0.014641]
[1771694371486,0.014639,68327.0,68319.0,0.014641]
[1771694371675,0.014639,68328.0,68320.0,0.014641]
[1771694372482,0.014639,68327.0,68320.0,0.014641]
[1771694372987,0.014639,68328.0,68321.0,0.014641]
[1771694373483,0.014639,68328.0,68319.0,0.014641]
[1771694373684,0.014641,68320.0,68311.0,0.014643]
[1771694373890,0.014641,68322.0,68315.0,0.014642]
[1771694374290,0.014641,68322.0,68311.0,0.014643]
[1771694374484,0.014641,68321.0,68314.0,0.014642]
[1771694379680,0.014641,68321.0,68315.0,0.014642]
[1771694383995,0.014641,68321.0,68314.0,0.014642]
[1771694384290,0.014641,68321.0,68315.0,0.014642]
[1771694385791,0.01464,68324.0,68310.0,0.014643]
[1771694385993,0.01464,68324.0,68317.0,0.014641]
[1771694386189,0.01464,68324.0,68318.0,0.014641]
[1771694386895,0.01464,68322.0,68316.0,0.014642]
[1771694392797,0.20083859,68326.0,68310.0,0.014643]
[1771694393002,0.014642,68317.0,68310.0,0.014643]
[1771694393202,0.014642,68317.0,68308.0,0.014643]
[1771694393402,0.014642,68316.0,68309.0,0.014643]
[1771694394006,0.014642,68314.0,68309.0,0.014643]
[1771694394203,0.014642,68314.0,68301.0,0.014645]
[1771694394502,0.014642,68314.0,68309.0,0.014643]
[1771694395397,0.014642,68314.0,68310.0,0.014643]
[1771694395605,0.014642,68314.0,68309.0,0.014643]
[1771694395998,0.014642,68314.0,68308.0,0.014643]
[1771694396897,0.014643,68313.0,68308.0,0.014643]
[1771694397104,0.014642,68315.0,68309.0,0.014643]
[1771694397296,0.014642,68314.0,68309.0,0.014643]
[1771694397805,0.014642,68313.0,68308.0,0.014643]
[1771694397998,0.014643,68310.0,68304.0,0.014644]
[1771694398203,0.014643,68309.0,68303.0,0.014644]
[1771694398403,0.014643,68309.0,68304.0,0.014644]
[1771694398704,0.17835589,68314.0,68285.0,0.43287545]
[1771694398705,0.20083859,68312.0,68285.0,0.43287545]
[1771694398901,0.17835589,68295.0,68281.0,2.7e-07]
[1771694399097,0.014649,68283.0,68281.0,2.7e-07]
[1771694400004,0.014649,68284.0,68281.0,2.7e-07]
[1771694400198,0.17835589,68300.0,68281.0,2.7e-07]
[1771694400199,0.014647,68291.0,68281.0,0.22080948]
[1771694400391,0.014647,68290.0,68284.0,0.014648]
[1771694400697,0.014647,68291.0,68283.0,0.014649]
[1771694400898,0.014648,68289.0,68283.0,0.014649]
[1771694401506,0.014647,68290.0,68283.0,0.014649]
[1771694401697,0.014647,68293.0,68283.0,0.014649]
[1771694401899,0.014645,68300.0,68292.0,0.014647]
[1771694402204,0.014645,68299.0,68291.0,0.014647]
[1771694402395,0.014645,68299.0,68292.0,0.014647]
[1771694403104,0.014646,68298.0,68291.0,0.014647]
[1771694404404,0.014645,68302.0,68294.0,0.014646]
[1771694404595,0.014644,68306.0,68298.0,0.014645]
[1771694404796,0.014644,68305.0,68298.0,0.014645]
[1771694405700,0.014644,68304.0,68297.0,0.014646]
[1771694406005,0.014644,68305.0,68298.0,0.014646]
[1771694406406,0.014644,68304.0,68297.0,0.014646]
[1771694406805,0.014644,68305.0,68298.0,0.014646]
[1771694407307,0.014644,68304.0,68298.0,0.014646]